bitfinex/quotes_BTCUSD_20220304
["timestamp","ask_amount","ask_price","bid_price","bid_amount"]
[1646353736821,0.177761,42226.0,42212.0,0.01242659]
[1646353736822,0.059251,42223.0,42216.0,0.1185022]
[1646353737220,0.059251,42223.0,42216.0,0.9418022]
[1646353737628,0.08279,42222.0,42216.0,0.1185022]
[1646353737824,0.05925,42222.0,42212.0,0.46182659]
[1646353738023,0.15795847,42218.0,42215.0,0.1185034]
[1646353738267,0.059264,42219.0,42212.0,0.01242659]
[1646353738466,0.08279,42222.0,42212.0,0.01242659]
[1646353738669,0.01235399,42217.0,42212.0,0.00742659]
[1646353738867,0.03755927,42217.0,42208.0,0.1]
[1646353739067,0.02354,42217.0,42208.0,0.1]
[1646353739266,0.23623554,42213.0,42204.0,0.1]
[1646353739466,0.01261478,42212.0,42204.0,0.1]
[1646353739668,0.28959133,42212.0,42204.0,0.1]
[1646353739866,0.059277,42213.0,42208.0,0.03574416]
[1646353740067,0.059277,42213.0,42206.0,0.11854578]
[1646353740366,0.059277,42213.0,42210.0,0.03574416]
[1646353740565,0.059277,42213.0,42212.0,0.03574416]
[1646353741368,0.07206355,42214.0,42212.0,0.15426223]
[1646353741576,0.07206355,42214.0,42213.0,0.77411344]
[1646353741577,0.059277,42214.0,42213.0,0.77411344]
[1646353741769,0.059277,42214.0,42213.0,0.87452974]
[1646353742029,0.01169927,42224.0,42213.0,0.88258416]
[1646353742236,0.237007,42236.0,42225.0,0.059238]
[1646353742237,0.02301333,42235.0,42225.0,0.059238]
[1646353742431,0.01241939,42234.0,42228.0,0.7233]
[1646353742628,0.01232761,42233.0,42228.0,0.7233]
[1646353742827,0.011037,42232.0,42228.0,0.7233]
[1646353743028,0.059237,42233.0,42228.0,0.7233]
[1646353743327,0.059237,42233.0,42228.0,0.78253638]
[1646353743529,0.118473,42234.0,42228.0,0.78253638]
[1646353743728,0.17771,42234.0,42228.0,0.78253638]
[1646353744228,0.17771,42234.0,42230.0,0.7233]
[1646353744429,0.17771,42234.0,42231.0,0.01435111]
[1646353744629,0.1907178,42234.0,42231.0,0.01435111]
[1646353745027,0.17771,42234.0,42231.0,0.01435111]
[1646353745229,0.17771,42234.0,42231.0,1.01533503]
[1646353745428,0.17771,42234.0,42232.0,0.0474]
[1646353745629,0.118473,42234.0,42232.0,0.0474]
[1646353746862,0.118473,42234.0,42232.0,0.0514]
[1646353747660,0.13247868,42234.0,42232.0,0.0514]
[1646353748061,0.13247868,42234.0,42232.0,0.0474]
[1646353748062,0.01445327,42233.0,42232.0,0.0474]
[1646353748660,0.01445327,42233.0,42232.0,0.08314416]
[1646353748862,0.01445327,42233.0,42232.0,0.08814416]
[1646353749918,0.13225236,42234.0,42232.0,0.08814416]
[1646353750120,0.13225236,42234.0,42233.0,0.03574416]
[1646353750915,0.13225236,42234.0,42233.0,0.04074416]
[1646353751116,0.118473,42234.0,42233.0,0.04074416]
[1646353752120,0.118473,42234.0,42233.0,0.03574416]
[1646353752920,0.118473,42234.0,42233.0,0.04074416]
[1646353753868,0.118473,42234.0,42233.0,0.14074416]
[1646353756072,0.118473,42234.0,42233.0,0.13574416]
[1646353758812,0.118473,42234.0,42233.0,0.03574416]
[1646353759014,0.118473,42234.0,42229.0,0.1474]
[1646353759217,0.177716,42234.0,42229.0,0.0474]
[1646353759715,0.177716,42234.0,42229.0,0.7707]
[1646353760117,0.177716,42234.0,42228.0,0.05923638]
[1646353760118,0.23779715,42230.0,42228.0,0.05923638]
[1646353760515,0.23779715,42230.0,42224.0,0.17770913]
[1646353761464,0.01397798,42229.0,42224.0,0.27770913]
[1646353761665,0.01397798,42229.0,42225.0,0.7233]
[1646353762066,0.01142239,42228.0,42224.0,0.17770913]
[1646353762265,0.059251,42229.0,42224.0,0.17770913]
[1646353762466,0.01159724,42228.0,42224.0,0.17770913]
[1646353762666,0.118501,42231.0,42224.0,0.17770913]
[1646353762870,0.25672782,42229.0,42224.0,0.18470913]
[1646353763070,0.2441394,42229.0,42224.0,0.18470913]
[1646353763269,0.118501,42231.0,42224.0,0.18470913]
[1646353763670,0.01236114,42232.0,42225.0,0.7233]
[1646353763870,0.01444425,42230.0,42226.0,0.1]
[1646353764069,0.118473,42234.0,42228.0,0.05923168]
[1646353764070,0.12947302,42234.0,42228.0,0.05923168]
[1646353764916,0.12947302,42234.0,42228.0,0.06623168]
[1646353765112,0.21418937,42233.0,42228.0,0.06623168]
[1646353765313,0.21418937,42233.0,42228.0,0.007]
[1646353765516,0.16767327,42230.0,42228.0,0.007]
[1646353765712,0.1540884,42230.0,42228.0,0.007]
[1646353766113,0.1540884,42230.0,42223.0,2.4134591]
[1646353766314,0.31010004,42229.0,42223.0,2.35421245]
[1646353766515,0.31010004,42229.0,42219.0,0.94179599]
[1646353766516,0.01427955,42228.0,42219.0,0.94179599]
[1646353766812,0.01315913,42228.0,42219.0,0.94179599]
[1646353767013,0.01315913,42228.0,42223.0,0.006]
[1646353767813,0.22465592,42225.0,42223.0,0.006]
[1646353768017,0.05925,42227.0,42223.0,0.006]
[1646353768263,0.01315913,42228.0,42219.0,0.94179599]
[1646353768464,0.18941362,42229.0,42224.0,0.5]
[1646353768664,0.177752,42229.0,42224.0,0.5]
[1646353769066,0.25567411,42227.0,42224.0,0.5]
[1646353769465,0.16658359,42226.0,42224.0,0.5]
[1646353770466,0.18032629,42226.0,42224.0,0.5]
[1646353770865,0.16658359,42226.0,42224.0,0.5]
[1646353772116,0.25567411,42227.0,42224.0,0.5]
[1646353773824,0.02354,42226.0,42224.0,0.5]
[1646353774422,0.02354,42226.0,42210.0,0.3595]
[1646353774623,0.02354,42226.0,42211.0,0.5]
[1646353774624,0.21926174,42218.0,42211.0,0.5]
[1646353774822,0.118536,42219.0,42206.0,3.07751245]
[1646353775022,0.059269,42219.0,42206.0,3.07751245]
[1646353775622,0.059269,42219.0,42207.0,1.1882235]
[1646353775873,0.3183692,42219.0,42209.0,0.84182845]
[1646353776074,0.059269,42219.0,42209.0,0.11852845]
[1646353776271,0.059269,42219.0,42209.0,0.84182845]
[1646353776474,0.4537,42229.0,42211.0,0.5]
[1646353776672,0.008065,42228.0,42212.0,1.02164558]
[1646353776873,0.1537,42229.0,42213.0,0.01512618]
[1646353777075,0.1537,42229.0,42217.0,0.01415502]
[1646353777273,0.1537,42229.0,42219.0,0.7233]
[1646353777473,0.929045,42231.0,42221.0,0.7233]
[1646353777676,0.8698,42231.0,42222.0,0.0474]
[1646353777872,0.20240235,42231.0,42222.0,0.0474]
[1646353778071,0.20240235,42231.0,42222.0,0.8474]
[1646353778275,0.43844613,42232.0,42222.0,0.8474]
[1646353778276,0.177775,42232.0,42222.0,0.8474]
[1646353778675,0.177775,42232.0,42222.0,1.5707]
[1646353779512,0.177775,42232.0,42223.0,1.28254532]
[1646353779719,0.177775,42232.0,42225.0,0.84178442]
[1646353779914,0.059245,42233.0,42227.0,0.7233]
[1646353780114,0.275773,42237.0,42228.0,0.7707]
[1646353780115,0.059232,42236.0,42228.0,0.7707]
[1646353780314,0.118473,42237.0,42230.0,0.7233]
[1646353780515,0.118473,42237.0,42230.0,0.7707]
[1646353780714,0.118473,42237.0,42231.0,0.1184638]
[1646353781616,0.17603019,42234.0,42231.0,0.1184638]
[1646353781816,0.44341846,42234.0,42231.0,0.1184638]
[1646353782616,0.23527419,42234.0,42231.0,0.1184638]
[1646353783017,0.059244,42234.0,42231.0,0.1184638]
[1646353784468,0.059244,42234.0,42231.0,0.11839353]
[1646353784867,0.059244,42234.0,42226.0,0.5]
[1646353785069,0.059244,42234.0,42228.0,0.05924205]
[1646353785267,0.059244,42234.0,42228.0,0.55924205]
[1646353785870,0.21140315,42231.0,42228.0,0.5]
[1646353786168,0.059244,42234.0,42225.0,0.61848442]
[1646353786568,0.082784,42234.0,42225.0,0.61848442]
[1646353786767,0.01340051,42233.0,42225.0,0.61848442]
[1646353787016,0.01340051,42233.0,42225.0,0.62648442]
[1646353787417,0.28349246,42232.0,42225.0,0.62648442]
[1646353787818,0.01340051,42233.0,42225.0,0.62648442]
[1646353788418,0.01340051,42233.0,42225.0,0.61848442]
[1646353788819,0.01340051,42233.0,42227.0,0.059242]
[1646353794915,0.01340051,42233.0,42227.0,0.064242]
[1646353796320,0.01340051,42233.0,42227.0,0.059242]
[1646353798570,0.47309191,42229.0,42227.0,0.059242]
[1646353798770,0.47309191,42229.0,42226.0,0.5]
[1646353799372,0.25639388,42229.0,42226.0,0.5]
[1646353800369,0.67514015,42228.0,42226.0,0.5]
[1646353800574,0.02354,42228.0,42226.0,0.5]
[1646353800970,0.02354,42228.0,42226.0,0.507]
[1646353802419,0.118504,42230.0,42226.0,0.53047359]
[1646353802818,0.118504,42230.0,42226.0,0.52347359]
[1646353803021,0.118504,42230.0,42226.0,0.52647359]
[1646353804323,0.118504,42230.0,42226.0,0.52347359]
[1646353804529,0.059251,42230.0,42226.0,1.29417359]
[1646353804726,0.177766,42232.0,42226.0,1.29417359]
[1646353805223,0.177766,42232.0,42226.0,0.57687359]
[1646353806267,0.177766,42232.0,42226.0,0.57087359]
[1646353806465,0.177766,42232.0,42227.0,0.5]
[1646353806664,0.177766,42232.0,42228.0,0.0474]
[1646353807667,0.059235,42233.0,42229.0,0.7233]
[1646353807867,0.118462,42237.0,42233.0,0.11847]
[1646353808069,0.118462,42237.0,42234.0,0.0474]
[1646353808766,0.118462,42237.0,42236.0,0.14]
[1646353809168,0.118462,42237.0,42236.0,0.33450746]
[1646353809369,0.118462,42237.0,42236.0,0.52901492]
[1646353809620,0.05923,42238.0,42237.0,0.01238139]
[1646353809927,0.05923,42238.0,42237.0,0.16396532]
[1646353810116,0.05923,42238.0,42237.0,0.88726532]
[1646353811117,0.05923,42238.0,42237.0,0.16396532]
[1646353811317,0.05923,42238.0,42237.0,0.88726532]
[1646353811919,0.05923,42238.0,42237.0,0.16396532]
[1646353812118,0.05923,42238.0,42237.0,0.88726532]
[1646353812318,0.05423,42238.0,42237.0,0.16396532]
[1646353813121,0.05423,42238.0,42237.0,0.89326532]
[1646353813373,0.012,42241.0,42237.0,0.89326532]
[1646353813571,0.118446,42244.0,42240.0,0.88669953]
[1646353813771,0.118446,42244.0,42241.0,0.23797147]
[1646353814372,0.118446,42244.0,42242.0,0.91780746]
[1646353814574,0.059215,42245.0,42244.0,0.7233]
[1646353814871,0.059215,42245.0,42244.0,0.81786691]
[1646353815074,0.118423,42249.0,42244.0,0.81786691]
[1646353815273,0.118423,42249.0,42245.0,0.78250985]
[1646353815472,0.118423,42249.0,42246.0,0.7707]
[1646353816173,0.05921,42247.0,42246.0,0.7707]
[1646353816573,0.05921,42247.0,42246.0,0.93409093]
[1646353817035,0.05921,42247.0,42246.0,0.94109093]
[1646353817932,0.118423,42249.0,42246.0,0.94109093]
[1646353818138,0.02502175,42252.0,42250.0,0.0592]
[1646353818335,0.01052308,42256.0,42251.0,0.7707]
[1646353818533,0.059199,42254.0,42251.0,0.7707]
[1646353818733,0.07136493,42254.0,42252.0,0.1]
[1646353819032,0.118401,42255.0,42253.0,0.0474]
[1646353819532,0.01143659,42256.0,42253.0,0.0474]
[1646353819732,0.01143659,42256.0,42254.0,0.19450746]
[1646353819931,0.01143659,42256.0,42255.0,0.0474]
[1646353819932,0.00643659,42256.0,42255.0,0.0474]
[1646353820133,0.001,42258.0,42255.0,0.15154448]
[1646353820336,0.01326263,42258.0,42256.0,0.10414448]
[1646353820535,0.07245963,42258.0,42256.0,0.15154324]
[1646353820966,0.060197,42258.0,42256.0,0.15154324]
[1646353821170,0.060197,42258.0,42256.0,0.15654324]
[1646353821574,0.301,42257.0,42256.0,0.15654324]
[1646353821770,0.301,42257.0,42256.0,0.005]
[1646353821771,0.31338099,42257.0,42256.0,0.005]
[1646353821968,0.01338099,42257.0,42256.0,0.005]
[1646353822169,0.01338099,42257.0,42254.0,0.56660596]
[1646353822370,0.28506769,42255.0,42254.0,0.38901492]
[1646353822572,0.01134168,42255.0,42254.0,0.38901492]
[1646353822773,0.001,42257.0,42254.0,0.03371192]
[1646353823572,0.23208468,42256.0,42254.0,0.03371192]
[1646353823774,0.23208468,42256.0,42254.0,0.15213309]
[1646353823974,0.23208468,42256.0,42254.0,0.14963309]
[1646353825020,0.23208468,42256.0,42254.0,0.11592117]
[1646353825216,0.23208468,42256.0,42255.0,0.03371192]
[1646353825417,0.001,42257.0,42255.0,0.03371192]
[1646353826417,0.27511314,42256.0,42255.0,0.03371192]
[1646353827818,0.27511314,42256.0,42254.0,0.11592117]
[1646353828018,1.35,42255.0,42254.0,0.11592117]
[1646353828671,1.35,42255.0,42251.0,0.11842883]
[1646353828672,1.37354,42255.0,42251.0,0.11842883]
[1646353828874,0.082765,42254.0,42247.0,0.05922486]
[1646353829072,0.082765,42254.0,42249.0,0.001]
[1646353829073,0.02354,42254.0,42249.0,0.001]
[1646353829471,1.410225,42255.0,42249.0,0.001]
[1646353829674,0.060225,42255.0,42249.0,0.001]
[1646353830372,0.060225,42255.0,42247.0,0.28425165]
[1646353830373,0.059225,42250.0,42247.0,0.28425165]
[1646353830572,0.059225,42250.0,42249.0,0.14]
[1646353833221,0.059225,42250.0,42249.0,0.146]
[1646353834422,0.059225,42250.0,42249.0,0.14]
[1646353835226,0.06944193,42250.0,42249.0,0.14]
[1646353835426,0.008181,42261.0,42250.0,1.35]
[1646353835635,0.012,42264.0,42252.0,0.65149606]
[1646353835636,0.001,42258.0,42252.0,0.65149606]
[1646353835878,0.001,42258.0,42255.0,0.5923]
[1646353836085,0.001,42262.0,42257.0,0.7233]
[1646353836278,0.001,42262.0,42258.0,0.1474]
[1646353836479,0.001,42262.0,42261.0,0.14]
[1646353836679,0.001,42262.0,42261.0,0.0474]
[1646353837079,0.001,42262.0,42261.0,0.0534]
[1646353838480,0.001,42262.0,42261.0,0.0474]
[1646353838980,0.012,42264.0,42261.0,0.0474]
[1646353839180,0.012,42264.0,42261.0,0.7767]
[1646353839382,0.001,42270.0,42261.0,0.0534]
[1646353839620,0.001,42270.0,42263.0,0.05918649]
[1646353839819,0.001,42270.0,42263.0,0.10658649]
[1646353840220,0.23881808,42268.0,42263.0,0.10658649]
[1646353840421,0.05919,42267.0,42263.0,0.10658649]
[1646353841224,0.24795737,42267.0,42263.0,0.11258649]
[1646353841423,0.05919,42267.0,42263.0,0.11258649]
[1646353842422,0.05919,42267.0,42263.0,0.10658649]
[1646353844469,0.22134481,42266.0,42262.0,0.11837298]
[1646353844868,0.05919,42267.0,42262.0,0.11837298]
[1646353845469,0.05919,42267.0,42262.0,0.11817298]
[1646353845668,0.01491836,42266.0,42262.0,0.11817298]
[1646353845869,0.28535715,42266.0,42262.0,0.11817298]
[1646353847216,0.28535715,42266.0,42262.0,0.12417298]
[1646353848021,0.01491836,42266.0,42262.0,0.12417298]
[1646353849021,0.01491836,42266.0,42262.0,0.11817298]
[1646353849221,0.26288698,42264.0,42262.0,0.11817298]
[1646353849423,0.25030933,42264.0,42262.0,0.11817298]
[1646353849624,0.27847664,42267.0,42262.0,0.11817298]
[1646353849827,0.05919,42267.0,42262.0,0.11817298]
[1646353851066,0.05919,42267.0,42262.0,0.12417298]
[1646353851266,0.05919,42267.0,42262.0,0.11417298]
[1646353852067,0.05919,42267.0,42263.0,0.0474]
[1646353853070,0.33923598,42267.0,42262.0,0.10817298]
[1646353855218,0.05919,42267.0,42262.0,0.11417298]
[1646353855419,0.07119,42267.0,42262.0,0.11417298]
[1646353856421,0.012,42267.0,42262.0,0.10817298]
[1646353856628,0.012,42267.0,42264.0,0.059184]
[1646353856921,0.012,42267.0,42265.0,0.22493938]
[1646353857120,0.012,42268.0,42267.0,0.024]
[1646353857322,0.012,42268.0,42267.0,0.0714]
[1646353859068,0.012,42268.0,42267.0,0.0794]
[1646353860277,0.119367,42270.0,42267.0,0.33006592]
[1646353860278,0.001,42270.0,42267.0,0.33006592]
[1646353860475,0.001,42270.0,42267.0,0.32206592]
[1646353860670,0.01157806,42272.0,42269.0,0.01487673]
[1646353860869,0.1616,42281.0,42268.0,0.33666923]
[1646353860870,0.01099525,42277.0,42271.0,0.01645341]
[1646353861070,0.1616,42281.0,42272.0,0.10657433]
[1646353861071,0.01474034,42276.0,42272.0,0.10657433]
[1646353861269,0.1616,42281.0,42272.0,0.10657433]
[1646353861270,0.07138797,42275.0,42272.0,0.10657433]
[1646353861471,0.01264767,42273.0,42272.0,0.10657433]
[1646353861670,0.059178,42275.0,42272.0,0.10657433]
[1646353862116,0.059178,42275.0,42274.0,0.10407919]
[1646353862320,0.059178,42277.0,42274.0,0.15147919]
[1646353862514,0.118359,42279.0,42274.0,0.0474]
[1646353862714,0.059174,42277.0,42274.0,0.0474]
[1646353863518,0.118349,42276.0,42274.0,0.0474]
[1646353866371,0.1733452,42276.0,42274.0,0.0474]
[1646353866576,2.184798,42275.0,42260.0,0.009467]
[1646353866775,0.059202,42265.0,42260.0,0.009467]
[1646353866975,0.3,42264.0,42260.0,0.009467]
[1646353867178,0.3,42264.0,42255.0,0.006]
[1646353867373,0.20003049,42260.0,42255.0,0.006]
[1646353867580,0.20811432,42263.0,42255.0,0.006]
[1646353867581,0.23165432,42263.0,42255.0,0.006]
[1646353867775,0.23165432,42263.0,42245.0,0.1711]
[1646353867974,0.177635,42258.0,42245.0,0.1711]
[1646353868176,0.118414,42261.0,42245.0,0.40177544]
[1646353868378,0.3,42264.0,42251.0,0.11840006]
[1646353868573,0.161,42266.0,42251.0,0.11840006]
[1646353868574,0.24480849,42262.0,42251.0,0.11840006]
[1646353869176,0.161,42266.0,42252.0,0.0592]
[1646353869177,0.118403,42254.0,42252.0,0.0592]
[1646353869375,0.177635,42260.0,42253.0,0.14]
[1646353869632,0.177635,42260.0,42252.0,0.11840003]
[1646353870133,0.45236768,42260.0,42252.0,0.05920003]
[1646353870535,0.0592,42255.0,42252.0,0.05920003]
[1646353870733,0.0592,42255.0,42253.0,0.059198]
[1646353871434,0.1184,42256.0,42252.0,0.05920003]
[1646353871634,0.1184,42256.0,42253.0,0.059197]
[1646353871833,0.01429423,42255.0,42252.0,0.05920003]
[1646353872134,0.118409,42255.0,42252.0,0.05920003]
[1646353872337,0.1184,42256.0,42252.0,0.05920003]
[1646353872533,0.0592,42255.0,42252.0,0.05920003]
[1646353873271,0.0592,42255.0,42251.0,0.21840006]
[1646353873471,0.0592,42255.0,42251.0,0.11840006]
[1646353873872,0.0592,42255.0,42251.0,0.21840006]
[1646353874073,0.0592,42255.0,42252.0,0.05920003]
[1646353874274,0.0592,42255.0,42249.0,0.059204]
[1646353874879,0.0592,42255.0,42246.0,0.1829236]
[1646353874880,0.3,42254.0,42246.0,0.1829236]
[1646353875076,0.059219,42248.0,42245.0,0.9494]
[1646353875275,0.059219,42248.0,42244.0,0.17763383]
[1646353875673,0.22577772,42246.0,42244.0,0.17763383]
[1646353876173,0.22577772,42246.0,42240.0,0.20714979]
[1646353876174,0.11845,42246.0,42240.0,0.01183]
[1646353876676,0.11845,42246.0,42244.0,0.17763383]
[1646353877039,0.11845,42246.0,42240.0,0.01183]
[1646353877237,0.11845,42246.0,42240.0,0.20714979]
[1646353878140,0.11845,42246.0,42241.0,0.19531979]
[1646353878541,0.11845,42246.0,42243.0,0.05922303]
[1646353879839,0.11845,42246.0,42239.0,0.21951099]
[1646353880045,0.11845,42246.0,42235.0,0.5]
[1646353880046,0.32354,42245.0,42235.0,0.5]
[1646353880245,0.02354,42243.0,42233.0,0.11847]
[1646353880444,0.20729787,42235.0,42233.0,0.11847]
[1646353880643,0.20729787,42235.0,42231.0,0.0011]
[1646353880884,0.23479912,42233.0,42231.0,0.0011]
[1646353881381,0.20729787,42235.0,42231.0,0.0011]
[1646353881778,0.059248,42236.0,42231.0,0.0011]
[1646353882378,0.26928609,42234.0,42231.0,0.0011]
[1646353882583,0.26928609,42234.0,42231.0,0.06033924]
[1646353882584,0.3410554,42234.0,42231.0,0.06033924]
[1646353882780,0.011762,42233.0,42231.0,0.06033924]
[1646353884621,0.1885933,42233.0,42231.0,0.06033924]
[1646353884823,0.1885933,42233.0,42229.0,0.11848114]
[1646353885228,0.1885933,42233.0,42228.0,0.001]
[1646353885229,0.2121333,42233.0,42228.0,0.001]
[1646353885423,0.2121333,42233.0,42226.0,0.10971156]
[1646353885624,0.2121333,42233.0,42228.0,0.05924925]
[1646353886022,0.035302,42233.0,42228.0,0.05924925]
[1646353886924,0.21347105,42232.0,42226.0,0.10971156]
[1646353887124,0.62852209,42234.0,42233.0,0.48766398]
[1646353887325,0.32852209,42234.0,42226.0,0.10971156]
[1646353887523,0.01429084,42233.0,42226.0,0.10971156]
[1646353888376,0.01429084,42233.0,42228.0,0.05924925]
[1646353889279,0.16378718,42232.0,42228.0,0.05924925]
[1646353889480,0.17759977,42232.0,42228.0,0.05924925]
[1646353889677,0.01381259,42232.0,42228.0,0.05924925]
[1646353889979,0.32852209,42234.0,42228.0,0.05924925]
[1646353889980,0.01108307,42229.0,42228.0,0.05924925]
[1646353890282,0.059249,42230.0,42228.0,0.05924925]
[1646353890476,0.16457126,42231.0,42228.0,0.05924925]
[1646353890877,0.29314066,42232.0,42228.0,0.05924925]
[1646353891086,0.29314066,42232.0,42220.0,0.0011]
[1646353891087,0.3,42231.0,42215.0,0.118487]
[1646353891280,0.3,42231.0,42214.0,0.0011]
[1646353891281,0.02354,42227.0,42214.0,0.0011]
[1646353891478,0.02354,42227.0,42213.0,0.0011]
[1646353891479,0.02354,42222.0,42213.0,0.0011]
[1646353891678,0.02354,42222.0,42212.0,0.0011]
[1646353891679,0.02354,42218.0,42212.0,0.0011]
[1646353891882,0.44247374,42214.0,42212.0,0.0011]
[1646353892125,0.23434795,42213.0,42212.0,0.0011]
[1646353892526,0.1474,42217.0,42212.0,0.0011]
[1646353892827,0.1474,42217.0,42213.0,0.05926542]
[1646353893026,0.6474,42217.0,42213.0,0.05926542]
[1646353893224,0.5474,42217.0,42213.0,0.05926542]
[1646353893628,0.5,42217.0,42213.0,0.05926542]
[1646353894526,0.16237056,42221.0,42213.0,0.05926542]
[1646353894729,0.0537916,42216.0,42213.0,0.05926542]
[1646353894926,0.96237056,42221.0,42213.0,0.05926542]
[1646353895125,0.21454609,42218.0,42213.0,0.05926542]
[1646353895790,0.21454609,42218.0,42212.0,0.11962765]
[1646353895791,0.58566488,42217.0,42212.0,0.0011]
[1646353895984,0.63306488,42217.0,42212.0,0.0011]
[1646353896183,0.02354,42215.0,42209.0,0.0015]
[1646353896385,0.07094,42215.0,42209.0,0.0015]
[1646353896583,0.32354,42214.0,42209.0,0.0015]
[1646353896781,0.17388646,42210.0,42209.0,0.0015]
[1646353896981,0.22128646,42210.0,42209.0,0.0015]
[1646353897385,0.54482646,42210.0,42202.0,0.06248557]
[1646353897583,0.59742646,42210.0,42202.0,0.0032]
[1646353897785,0.41740895,42209.0,42202.0,0.0032]
[1646353898184,0.12354,42208.0,42202.0,0.0032]
[1646353898381,0.3,42207.0,42202.0,0.0032]
[1646353898581,0.3,42207.0,42197.0,0.0022]
[1646353898582,0.361258,42206.0,42197.0,0.0022]
[1646353898785,0.13587342,42205.0,42197.0,0.0022]
[1646353899084,0.02354,42201.0,42197.0,0.0022]
[1646353899284,0.42354,42201.0,42191.0,0.0006]
[1646353899524,0.58687969,42201.0,42191.0,0.0006]
[1646353899727,0.059298,42201.0,42191.0,0.1191858]
[1646353899926,0.5,42204.0,42192.0,0.17784497]
[1646353900325,0.01053499,42203.0,42192.0,0.17784497]
[1646353900628,0.118577,42205.0,42194.0,0.0592929]
[1646353900825,0.23268014,42197.0,42194.0,0.0592929]
[1646353901024,0.01137482,42196.0,42194.0,0.0592929]
[1646353901227,0.31137482,42196.0,42194.0,0.0592929]
[1646353901428,0.0133518,42195.0,42194.0,0.0592929]
[1646353901625,0.18437265,42196.0,42194.0,0.0592929]
[1646353902228,0.18437265,42196.0,42191.0,0.0006]
[1646353902229,0.20791265,42196.0,42191.0,0.0006]
[1646353902727,0.20791265,42196.0,42191.0,0.05990157]
[1646353902927,0.23268014,42197.0,42191.0,0.05990157]
[1646353903374,0.23268014,42197.0,42191.0,0.0006]
[1646353904279,0.15785202,42192.0,42191.0,0.0006]
[1646353905080,0.1,42193.0,42191.0,0.0006]
[1646353905281,0.118614,42194.0,42191.0,0.0006]
[1646353905282,0.1,42199.0,42191.0,0.0006]
[1646353905582,0.6649,42200.0,42191.0,0.0006]
[1646353905981,0.5,42200.0,42191.0,0.0006]
[1646353906182,0.543,42208.0,42194.0,0.059289]
[1646353906183,0.5,42206.0,42194.0,0.059289]
[1646353906383,0.5,42206.0,42194.0,0.508689]
[1646353906583,0.02354,42205.0,42194.0,0.4494]
[1646353906783,0.5,42206.0,42195.0,0.3]
[1646353907040,0.17563269,42207.0,42195.0,0.3]
[1646353907230,0.17563269,42207.0,42200.0,0.059282]
[1646353907831,0.059287,42207.0,42200.0,0.059282]
[1646353908531,0.059287,42207.0,42202.0,0.17783573]
[1646353908933,0.24571123,42205.0,42202.0,0.05927858]
[1646353909735,0.26925123,42205.0,42197.0,0.007]
[1646353909935,0.3,42204.0,42197.0,0.007]
[1646353910138,0.3,42204.0,42191.0,0.0006]
[1646353910140,0.02354,42198.0,42191.0,0.0006]
[1646353910435,0.18080357,42192.0,42191.0,0.0006]
[1646353910878,0.28080357,42192.0,42191.0,0.0006]
[1646353911280,0.51373638,42192.0,42191.0,0.0006]
[1646353911877,0.1,42192.0,42191.0,0.0006]
[1646353912079,0.001,42197.0,42191.0,0.0006]
[1646353912080,0.101,42197.0,42191.0,0.0006]
[1646353912481,0.1,42197.0,42191.0,0.0006]
[1646353912679,0.159294,42198.0,42191.0,0.0006]
[1646353912880,0.25934191,42198.0,42191.0,0.0006]
[1646353913281,0.1,42198.0,42191.0,0.0006]
[1646353913486,1.409294,42199.0,42191.0,0.0006]
[1646353914081,0.23424349,42196.0,42191.0,0.0006]
[1646353914283,1.409294,42199.0,42191.0,0.0006]
[1646353914524,0.059294,42199.0,42191.0,0.0006]
[1646353914826,0.6241,42204.0,42191.0,0.0006]
[1646353914827,0.3,42203.0,42191.0,0.0006]
[1646353915025,0.31346568,42203.0,42191.0,0.048]
[1646353915225,0.01486669,42202.0,42191.0,0.0006]
[1646353915426,0.06312917,42200.0,42191.0,0.0006]
[1646353915626,0.02354,42199.0,42191.0,0.0006]
[1646353915824,0.34191918,42195.0,42191.0,0.0006]
[1646353916225,0.02354,42196.0,42191.0,0.0006]
[1646353916426,0.3,42199.0,42191.0,0.0006]
[1646353916628,0.3,42203.0,42191.0,0.0006]
[1646353917227,0.64464184,42204.0,42203.0,0.00540644]
[1646353917528,1.35,42203.0,42187.0,0.009484]
[1646353917727,0.4,42202.0,42187.0,0.056884]
[1646353917926,0.02354,42201.0,42187.0,0.056884]
[1646353918126,0.02354,42197.0,42187.0,0.0474]
[1646353918376,0.27339796,42196.0,42187.0,0.0474]
[1646353918578,0.17564948,42197.0,42187.0,0.0474]
[1646353919075,0.17564948,42197.0,42190.0,0.059292]
[1646353919276,0.17564948,42197.0,42191.0,0.05928989]
[1646353920077,0.17564948,42197.0,42189.0,0.11858237]
[1646353920978,0.24760534,42196.0,42189.0,0.11858237]
[1646353921676,0.01162449,42195.0,42189.0,0.11858237]
[1646353921879,0.0118381,42194.0,42190.0,0.059292]
[1646353922135,0.5579,42206.0,42194.0,0.03551429]
[1646353922136,0.01156355,42198.0,42194.0,0.03551429]
[1646353922334,0.01146315,42197.0,42194.0,0.08291429]
[1646353922533,0.01350651,42196.0,42194.0,0.08291429]
[1646353922732,0.21993818,42201.0,42194.0,0.08291429]
[1646353922933,0.17544736,42201.0,42194.0,0.08291429]
[1646353923535,0.39112626,42201.0,42194.0,0.14219918]
[1646353923836,0.45528128,42201.0,42194.0,0.08291429]
[1646353924233,0.60528128,42201.0,42194.0,0.03551429]
[1646353924434,0.03519567,42200.0,42194.0,0.03551429]
[1646353924635,0.01215915,42198.0,42194.0,0.03551429]
[1646353924834,0.0139167,42197.0,42194.0,0.03551429]
[1646353925036,0.28956418,42195.0,42194.0,0.03551429]
[1646353925234,0.118596,42198.0,42194.0,0.03551429]
[1646353925873,0.059297,42198.0,42194.0,0.03551429]
[1646353926676,0.059297,42198.0,42196.0,0.00010069]
[1646353927979,0.45,42197.0,42196.0,0.00010069]
[1646353928378,0.55,42197.0,42196.0,0.00010069]
[1646353928779,0.74942205,42197.0,42196.0,0.00010069]
[1646353931030,1.4,42196.0,42194.0,0.03551429]
[1646353931230,1.51183,42196.0,42194.0,0.03551429]
[1646353931632,0.1,42196.0,42194.0,0.03551429]